bitfinex/quotes_SOLUSD_20250731
["timestamp","ask_amount","ask_price","bid_price","bid_amount"]
[1753968382931,3.7017344,177.52,177.48,50.84948899]
[1753968383337,160.79122339,177.52,177.47,50.82948899]
[1753968383534,13.49122339,177.51,177.47,50.82948899]
[1753968383729,157.08948899,177.52,177.47,50.82948899]
[1753968383926,9.33572362,177.51,177.47,50.82948899]
[1753968385430,3.70213142,177.51,177.48,9.78948899]
[1753968385618,147.3,177.52,177.47,46.67463881]
[1753968385818,147.3,177.52,177.5,9.78948899]
[1753968386121,147.3,177.52,177.47,46.67463881]
[1753968386122,162.72272162,177.52,177.48,41.04]
[1753968386513,162.72272162,177.52,177.47,9.78948899]
[1753968386731,3.73340559,177.51,177.47,41.04]
[1753968386943,0.03,177.51,177.47,9.78948899]
[1753968387265,3.73342678,177.51,177.47,9.78948899]
[1753968387934,9.36702908,177.51,177.47,9.78948899]
[1753968388137,19.15651807,177.51,177.46,50.82948899]
[1753968388439,15.45309129,177.51,177.47,9.78948899]
[1753968389025,5.6636023,177.51,177.47,9.78948899]
[1753968389235,9.36724216,177.51,177.47,9.78948899]
[1753968390930,5.6636023,177.51,177.47,6.0078892]
[1753968391541,147.3,177.5,177.45,46.73535984]
[1753968391738,147.3,177.5,177.47,6.0078892]
[1753968392557,147.3,177.5,177.48,6.0078892]
[1753968394040,147.3,177.5,177.47,6.0078892]
[1753968394244,152.93400664,177.5,177.46,6.0078892]
[1753968395858,6.0078892,177.48,177.45,0.06]
[1753968396244,6.0078892,177.47,177.45,0.06]
[1753968396554,147.3,177.46,177.45,0.06]
[1753968397163,5.63507269,177.46,177.45,0.06]
[1753968397336,11.64270042,177.47,177.45,0.06]
[1753968397541,5.63481122,177.47,177.45,0.06]
[1753968397742,46.65420433,177.49,177.45,6.0678892]
[1753968397940,3.70228205,177.48,177.45,0.06]
[1753968398145,9.71017125,177.48,177.45,0.06]
[1753968398340,6.0078892,177.48,177.45,0.06]
[1753968398953,52.66209353,177.49,177.45,0.06]
[1753968399266,6.0078892,177.46,177.45,0.06]
[1753968399460,50.7291805,177.46,177.45,0.06]
[1753968399957,44.7212913,177.46,177.45,0.06]
[1753968400338,50.7291805,177.46,177.45,0.06]
[1753968401057,56.36425319,177.46,177.45,0.06]
[1753968404161,50.35636399,177.46,177.45,0.06]
[1753968404680,43.93025872,177.49,177.45,6.0678892]
[1753968404863,6.0078892,177.47,177.45,0.06]
[1753968405049,15.34290531,177.46,177.45,0.06]
[1753968407269,9.33501611,177.46,177.45,0.06]
[1753968407563,15.34290531,177.46,177.45,0.06]
[1753968412666,26.0,177.44,177.43,0.06]
[1753968412873,76.68783262,177.44,177.43,0.06]
[1753968413656,82.32354046,177.44,177.43,0.06]
[1753968415493,26.0,177.4,177.38,0.06]
[1753968415772,203.56512897,177.39,177.38,0.06]
[1753968417253,197.55723977,177.39,177.38,0.06]
[1753968417458,156.57723977,177.39,177.38,0.06]
[1753968417654,193.85729635,177.39,177.38,0.06]
[1753968417888,197.54401821,177.39,177.38,0.06]
[1753968418055,188.22,177.39,177.38,0.06]
[1753968418462,188.22,177.39,177.38,6.0678892]
[1753968418463,147.24,177.39,177.38,6.0678892]
[1753968418662,147.24,177.39,177.38,0.06]
[1753968419764,152.87729635,177.39,177.38,0.06]
[1753968420376,147.24,177.39,177.38,0.06]
[1753968420578,40.98,177.41,177.38,6.0678892]
[1753968420878,147.24,177.4,177.39,6.0078892]
[1753968421869,147.24,177.4,177.39,11.64518555]
[1753968422412,147.24,177.4,177.39,6.0078892]
[1753968424796,147.24,177.4,177.38,5.69756492]
[1753968425003,147.24,177.4,177.39,6.0078892]
[1753968425985,46.61609643,177.43,177.39,6.0078892]
[1753968426208,40.98,177.43,177.4,6.0078892]
[1753968426383,46.61609209,177.43,177.38,0.06]
[1753968426586,46.61609209,177.43,177.39,6.0078892]
[1753968427702,40.98,177.43,177.39,6.0078892]
[1753968428502,193.85606356,177.43,177.39,6.0078892]
[1753968428706,158.88395276,177.43,177.38,6.0678892]
[1753968429174,40.96,177.42,177.38,6.0678892]
[1753968429378,6.0078892,177.41,177.38,0.06]
[1753968429603,40.96,177.42,177.38,0.06]
[1753968430109,6.0078892,177.41,177.38,0.06]
[1753968430325,11.64518555,177.39,177.38,0.06]
[1753968430821,52.60490474,177.4,177.38,0.06]
[1753968432879,66.96,177.41,177.38,6.0678892]
[1753968433180,66.96,177.41,177.38,0.06]
[1753968433396,161.81335424,177.43,177.38,6.0678892]
[1753968433585,150.16920727,177.43,177.42,6.0078892]
[1753968433786,147.24,177.43,177.42,6.0078892]
[1753968434688,40.94,177.46,177.42,11.64423234]
[1753968434906,40.97,177.47,177.44,6.0078892]
[1753968435104,0.03,177.47,177.44,6.0078892]
[1753968435611,5.66482906,177.47,177.43,6.0078892]
[1753968435994,11.67271826,177.47,177.42,6.0078892]
[1753968436191,40.94,177.46,177.42,6.0078892]
[1753968436392,11.67271826,177.47,177.42,6.0078892]
[1753968436713,5.63539025,177.45,177.41,6.0078892]
[1753968437083,11.64327945,177.45,177.4,6.0078892]
[1753968437518,5.63539025,177.45,177.4,6.0078892]
[1753968437720,6.0078892,177.43,177.39,6.0078892]
[1753968438711,5.63666084,177.41,177.38,6.0678892]
[1753968439014,5.63666084,177.41,177.38,0.06]
[1753968439695,11.64432553,177.42,177.38,0.06]
[1753968439890,5.63609703,177.43,177.39,6.0078892]
[1753968440706,147.24,177.42,177.39,6.0078892]
[1753968440902,147.24,177.42,177.38,6.0678892]
[1753968441129,147.24,177.42,177.38,11.70546101]
[1753968441306,46.55609703,177.43,177.4,6.0078892]
[1753968441685,6.0078892,177.42,177.38,0.06]
[1753968441910,6.0078892,177.4,177.38,0.06]
[1753968442491,6.0078892,177.39,177.38,0.06]
[1753968442799,11.64504969,177.4,177.38,0.06]
[1753968443107,5.63716049,177.4,177.38,0.06]
[1753968443407,193.79674959,177.41,177.38,0.06]
[1753968443715,199.80463879,177.41,177.38,0.06]
[1753968444211,188.16,177.41,177.38,6.0678892]
[1753968445107,193.79669124,177.41,177.38,0.06]
[1753968445304,147.24,177.41,177.38,11.70540696]
[1753968445814,3.70178184,177.4,177.39,6.0078892]
[1753968446386,3.70178184,177.43,177.39,6.0078892]
[1753968446626,3.70178184,177.45,177.42,6.0078892]
[1753968446797,40.92,177.46,177.42,6.0078892]
[1753968446798,3.70178184,177.44,177.42,6.0078892]
[1753968446996,3.70178184,177.43,177.42,6.0078892]
[1753968447197,3.70178184,177.45,177.42,6.0078892]
[1753968447416,3.70178184,177.44,177.42,6.0078892]
[1753968447616,3.70178184,177.43,177.4,6.0078892]
[1753968447793,11.6433197,177.45,177.38,0.06]
[1753968447794,3.70178184,177.42,177.38,0.06]
[1753968447994,3.70178184,177.41,177.38,0.06]
[1753968448512,9.70967104,177.41,177.38,0.06]
[1753968448804,6.0078892,177.39,177.38,0.06]
[1753968448997,9.71068397,177.39,177.38,0.06]
[1753968449191,15.34798032,177.39,177.38,0.06]
[1753968450014,9.34009112,177.39,177.38,0.06]
[1753968450217,15.34798032,177.39,177.38,0.06]
[1753968450591,9.34009112,177.39,177.38,0.06]
[1753968451732,15.34798032,177.39,177.38,0.06]
[1753968454335,9.34009112,177.39,177.38,0.06]
[1753968454634,15.34798032,177.39,177.38,0.06]
[1753968457723,56.24798032,177.39,177.38,0.06]
[1753968458310,66.86323907,177.39,177.38,1e-08]
[1753968458631,60.85534987,177.39,177.38,1e-08]
[1753968459035,66.86323907,177.39,177.38,1e-08]
[1753968459352,66.86323907,177.39,177.37,1e-08]
[1753968459512,9.71068397,177.38,177.37,1e-08]
[1753968460225,15.95205352,177.38,177.36,1e-08]
[1753968460428,55.19805352,177.37,177.36,1e-08]
[1753968461513,60.83598552,177.37,177.36,1e-08]
[1753968462433,15.34861597,177.37,177.36,1e-08]
[1753968462738,56.22861597,177.37,177.36,1e-08]
[1753968464013,50.22072677,177.37,177.36,1e-08]
[1753968464212,56.22861597,177.37,177.36,1e-08]
[1753968465308,82.22861597,177.37,177.36,1e-08]
[1753968465642,162.64861597,177.37,177.36,1e-08]
[1753968467489,151.00279477,177.37,177.36,1e-08]
[1753968467785,147.3,177.37,177.36,1e-08]
[1753968468364,5.63765679,177.38,177.36,1e-08]
[1753968468774,11.64554599,177.38,177.36,1e-08]
[1753968469165,5.63765679,177.38,177.36,1e-08]
[1753968469568,3.70060703,177.39,177.36,1e-08]
[1753968469966,3.70060703,177.39,177.38,6.0078892]
[1753968470162,3.70060703,177.4,177.38,6.0078892]
[1753968470366,3.70060703,177.41,177.38,6.0078892]
[1753968470663,3.70060703,177.41,177.36,1e-08]
[1753968470877,9.70849623,177.41,177.36,1e-08]
[1753968471066,3.70060703,177.4,177.37,6.0078892]
[1753968471671,9.33727031,177.41,177.38,6.0078892]
[1753968471874,3.70060703,177.41,177.36,5.63822977]
[1753968472060,3.70060703,177.41,177.4,6.0078892]
[1753968472267,0.03,177.44,177.4,7.5734892]
[1753968472472,0.03,177.44,177.4,1.5656]
[1753968472672,0.03,177.44,177.42,6.0078892]
[1753968472887,0.03,177.44,177.4,1.5656]
[1753968473075,5.66576593,177.44,177.4,1.5656]
[1753968473390,5.66576593,177.44,177.41,6.0078892]
[1753968473888,0.03,177.44,177.41,6.0078892]
[1753968474274,0.03,177.44,177.42,6.0078892]
[1753968474862,0.03,177.44,177.43,6.0078892]
[1753968475673,0.03,177.44,177.43,11.64391467]
[1753968477170,0.03,177.44,177.43,6.0078892]
[1753968477365,0.03,177.44,177.4,1.5656]
[1753968477366,0.03,177.44,177.4,7.5734892]
[1753968477569,0.03,177.44,177.4,1.5656]
[1753968477793,0.03,177.44,177.42,6.0078892]
[1753968478164,0.03,177.44,177.43,6.0078892]
[1753968479790,0.03,177.44,177.42,11.64420893]
[1753968479989,0.03,177.44,177.41,6.0078892]
[1753968480293,6.0078892,177.42,177.37,0.06]
[1753968480485,6.0078892,177.38,177.37,0.06]
[1753968480884,9.70778864,177.38,177.37,0.06]
[1753968481080,35.70778864,177.38,177.37,0.06]
[1753968481293,76.52778864,177.38,177.37,0.06]
[1753968481690,82.1654028,177.38,177.37,0.06]
[1753968482780,70.51989944,177.38,177.37,0.06]
[1753968482975,4.60736955,177.43,177.37,9.86929563]
[1753968483175,5.63602547,177.43,177.37,9.86929563]
[1753968483398,3.73206885,177.44,177.41,9.80929563]
[1753968483603,3.73206885,177.44,177.43,15.4453211]
[1753968483896,0.03,177.44,177.43,9.80929563]
[1753968484079,0.03,177.44,177.43,15.4453211]
[1753968484477,0.03,177.44,177.43,17.0141211]
[1753968487206,0.03,177.44,177.43,7.20482547]
[1753968487382,0.03,177.44,177.43,17.0141211]
[1753968495384,0.03,177.44,177.43,7.20482547]
[1753968495612,0.03,177.44,177.43,17.0141211]
[1753968495817,0.03,177.44,177.42,9.80929563]
[1753968496507,0.03,177.44,177.43,9.80929563]
[1753968496819,0.03,177.44,177.42,15.44560398]
[1753968499006,0.03,177.44,177.41,5.63666084]
[1753968499728,147.33,177.44,177.4,9.80929563]
[1753968499894,9.80929563,177.41,177.37,0.06]
[1753968500098,147.3,177.43,177.37,0.06]
[1753968500395,9.80929563,177.41,177.37,9.86929563]
[1753968500605,9.80929563,177.42,177.37,9.86929563]
[1753968501015,147.3,177.43,177.37,5.69771514]
[1753968501192,147.3,177.43,177.42,9.80929563]
[1753968501392,147.3,177.43,177.41,9.80929563]
[1753968502812,147.3,177.43,177.42,9.80929563]
[1753968502994,147.3,177.43,177.42,15.44563877]
[1753968503191,147.3,177.43,177.39,5.63729635]
[1753968503395,9.80929563,177.42,177.37,50.64929563]
[1753968503598,147.3,177.41,177.38,9.80929563]
[1753968504101,147.3,177.41,177.39,9.80929563]
[1753968504302,147.3,177.41,177.37,50.64929563]
[1753968504939,147.3,177.41,177.37,0.06]
[1753968505120,147.3,177.41,177.38,9.80929563]
[1753968508110,157.10929563,177.41,177.37,9.86929563]
[1753968509008,147.3,177.41,177.38,9.80929563]
[1753968509825,147.3,177.41,177.38,15.44685066]
[1753968510912,147.3,177.41,177.4,9.80929563]
[1753968511337,147.3,177.41,177.38,22.422239]
[1753968511338,147.3,177.41,177.38,5.63755503]
[1753968511498,147.3,177.41,177.4,9.80929563]
[1753968513619,0.03,177.44,177.4,26.5939796]
[1753968513817,0.03,177.44,177.43,15.4453211]
[1753968514621,0.03,177.44,177.41,40.76]
[1753968514818,0.03,177.44,177.4,50.56929563]
[1753968515205,0.03,177.44,177.41,9.80929563]
[1753968515415,0.03,177.44,177.42,9.80929563]
[1753968515812,0.03,177.44,177.4,46.39675245]
[1753968516024,0.03,177.44,177.42,9.80929563]
[1753968516817,0.03,177.44,177.41,50.56929563]
[1753968517206,0.03,177.44,177.42,9.80929563]
[1753968517402,0.03,177.44,177.43,9.80929563]
[1753968517809,0.03,177.44,177.42,5.63634314]
[1753968518030,0.03,177.44,177.43,9.80929563]
[1753968518831,0.03,177.44,177.43,6.00919104]
[1753968519852,0.03,177.44,177.43,11.64521651]
[1753968520343,0.03,177.44,177.43,5.63602547]
[1753968520555,0.03,177.44,177.43,11.64521651]
[1753968520926,0.03,177.44,177.43,15.42864832]
[1753968521152,0.03,177.44,177.43,32.21333229]
[1753968524141,0.03,177.44,177.43,16.78468397]
[1753968524317,0.03,177.44,177.41,28.15700682]
[1753968524511,0.03,177.44,177.42,50.53262285]
[1753968524955,0.03,177.44,177.39,5.63699099]
[1753968525237,9.79262285,177.41,177.37,0.06]
[1753968526044,26.0,177.43,177.37,0.06]
[1753968526212,9.79262285,177.41,177.37,0.06]
[1753968527135,0.03,177.44,177.39,9.79262285]
[1753968527345,3.7069755,177.43,177.39,50.51262285]
[1753968527836,3.7369755,177.44,177.41,9.79262285]
[1753968528140,3.7069755,177.43,177.41,15.42923763]
[1753968528552,0.03,177.44,177.42,9.79262285]
[1753968528845,0.03,177.44,177.42,50.51262285]
[1753968529049,0.03,177.44,177.43,9.79262285]
[1753968529980,0.03,177.44,177.41,15.42923763]
[1753968530252,0.03,177.44,177.42,50.51262285]
[1753968530635,0.03,177.44,177.42,40.72]
[1753968530823,0.03,177.44,177.42,50.51262285]
[1753968531839,0.03,177.44,177.42,40.72]
[1753968532048,3.74176191,177.44,177.42,40.72]
[1753968532222,3.74176191,177.44,177.42,50.51262285]
[1753968532422,3.74176191,177.44,177.42,40.72]
[1753968532738,3.74176191,177.44,177.4,56.14950812]
[1753968532924,3.71176191,177.43,177.4,56.14950812]
[1753968533427,3.74176191,177.44,177.41,9.79262285]
[1753968533855,3.74176191,177.44,177.4,46.35688527]
[1753968534141,3.74176191,177.44,177.42,9.79262285]
[1753968534520,3.74176191,177.44,177.41,50.51262285]
[1753968535251,3.74176191,177.44,177.41,56.14925042]
[1753968535567,3.74176191,177.44,177.42,9.79262285]
[1753968536665,3.74176191,177.44,177.42,15.42877521]
[1753968537161,0.03,177.44,177.42,5.63615236]
[1753968537362,0.03,177.44,177.43,9.79262285]
[1753968539067,0.03,177.44,177.43,15.42864832]
[1753968539869,0.03,177.44,177.43,56.12864832]
[1753968540864,0.03,177.44,177.43,52.34506853]
[1753968547479,3.74487083,177.44,177.41,6.00904306]
[1753968547680,3.74487083,177.44,177.41,46.68904306]
[1753968548775,3.74487083,177.44,177.41,40.68]
[1753968548976,9.38059276,177.44,177.41,40.68]
[1753968549145,3.74487083,177.44,177.41,40.68]
[1753968549880,3.74487083,177.44,177.41,46.68904306]
[1753968550169,0.03,177.44,177.41,46.68904306]
[1753968550774,0.03,177.44,177.4,6.00904306]
[1753968550948,6.03904306,177.44,177.41,40.68]
[1753968551276,151.01533343,177.43,177.41,40.68]
[1753968551459,147.3,177.43,177.41,40.68]
[1753968551860,9.72405501,177.42,177.37,0.06]
[1753968552059,6.00904306,177.39,177.37,0.06]
[1753968552476,6.00904306,177.41,177.37,0.06]
[1753968552654,3.71383147,177.4,177.37,0.06]
[1753968552976,3.71383147,177.39,177.37,0.06]
[1753968553151,6.00904306,177.41,177.37,0.06]
[1753968553350,3.71383147,177.4,177.37,5.697932]
[1753968553549,3.71383147,177.39,177.37,5.697932]
[1753968553751,3.71383147,177.4,177.37,5.697932]
[1753968554050,6.00904306,177.41,177.37,11.70697506]
[1753968554375,3.71383147,177.4,177.37,5.697932]
[1753968554878,3.71383147,177.39,177.37,5.697932]
[1753968555063,3.71383147,177.4,177.37,5.697932]
[1753968555659,3.71383147,177.39,177.37,0.06]
[1753968555970,6.00904306,177.38,177.37,0.06]
[1753968556383,6.00904306,177.39,177.37,0.06]
[1753968558285,46.29708496,177.4,177.37,0.06]
[1753968558459,9.71622078,177.39,177.37,0.06]
[1753968558659,6.00904306,177.39,177.37,0.06]
[1753968559290,153.30904306,177.38,177.37,0.06]
[1753968559470,151.00493681,177.38,177.37,0.06]
[1753968559671,157.01397987,177.38,177.37,0.06]
[1753968559879,162.65159403,177.38,177.37,0.06]
[1753968561596,156.64255097,177.38,177.37,0.06]
[1753968561888,162.65159403,177.38,177.37,0.06]
[1753968562071,203.31159403,177.38,177.37,0.06]
[1753968563287,56.01159403,177.38,177.37,0.06]
[1753968563991,44.36493681,177.38,177.37,0.06]
[1753968564482,5.63701112,177.4,177.37,0.06]
[1753968564673,26.0,177.38,177.37,6.06904306]
[1753968564872,40.66,177.42,177.37,0.06]
[1753968565178,3.69937498,177.41,177.39,6.00904306]
[1753968565862,40.66,177.42,177.39,6.00904306]
[1753968566687,69.60030903,177.44,177.4,6.00904306]
[1753968566897,26.0,177.42,177.41,6.00904306]
[1753968567064,2.96030903,177.44,177.41,6.00904306]
[1753968567264,0.03,177.44,177.41,6.00904306]
[1753968567462,3.730845,177.44,177.41,6.00904306]
[1753968568195,9.36655494,177.44,177.41,6.00904306]
[1753968568371,26.0,177.43,177.39,6.00904306]
[1753968568574,6.00904306,177.42,177.38,6.00904306]
[1753968568773,6.00904306,177.42,177.37,6.06904306]
[1753968569074,147.3,177.41,177.37,6.06904306]
[1753968569285,147.3,177.41,177.37,0.06]
[1753968569486,147.3,177.41,177.38,6.00904306]
[1753968569791,147.3,177.41,177.39,6.00904306]
[1753968569974,6.00904306,177.41,177.37,0.06]
[1753968570291,46.27656156,177.42,177.37,0.06]
[1753968570292,6.00904306,177.39,177.37,0.06]
[1753968570475,40.64,177.4,177.37,0.06]
[1753968570788,9.71025203,177.39,177.37,0.06]
[1753968571084,6.00904306,177.39,177.37,0.06]
[1753968571290,40.64,177.4,177.37,0.06]
[1753968571484,9.70982407,177.39,177.37,0.06]
[1753968571677,6.00904306,177.38,177.37,0.06]
[1753968571880,15.34717348,177.38,177.37,0.06]
[1753968572077,55.98717348,177.38,177.37,0.06]
[1753968575573,49.97813042,177.38,177.37,0.06]
[1753968575773,55.98717348,177.38,177.37,0.06]
[1753968577796,58.24686848,177.38,177.37,0.06]
[1753968578477,55.98717348,177.38,177.37,0.06]
[1753968580794,173.23999999,177.35,177.34,0.06]
[1753968580984,219.86904305,177.35,177.34,0.06]
[1753968581906,72.62904306,177.35,177.34,0.06]
[1753968582596,78.26761086,177.35,177.34,0.06]
[1753968583418,46.62904306,177.37,177.34,0.06]
[1753968583709,46.62904306,177.37,177.36,0.06]
[1753968584117,5.63728055,177.4,177.36,0.06]
[1753968584322,11.67632361,177.4,177.36,6.06904306]
[1753968584491,46.28728055,177.4,177.36,6.06904306]
[1753968584686,52.29632361,177.4,177.36,6.06904306]
[1753968584982,52.27632361,177.4,177.36,6.06904306]
[1753968585180,6.00904306,177.39,177.36,0.06]
[1753968585388,6.00904306,177.38,177.36,0.06]
[1753968586815,11.64697506,177.37,177.36,0.06]
[1753968587028,15.33927931,177.37,177.36,0.06]
[1753968591393,152.8785678,177.35,177.34,0.06]
[1753968591593,203.17991511,177.35,177.34,0.06]
[1753968593094,207.59798038,177.35,177.34,0.06]
[1753968594092,166.99798038,177.35,177.34,0.06]
[1753968594293,233.57798038,177.35,177.34,0.06]
[1753968598598,86.33798038,177.35,177.34,0.06]
[1753968600537,39.74893732,177.35,177.34,0.06]
[1753968600834,2.93219938,177.38,177.34,7.59554306]
[1753968601123,46.58904306,177.37,177.34,1.5865]
[1753968601495,32.00904306,177.35,177.34,0.06]
[1753968601700,81.92964732,177.35,177.34,0.06]
[1753968602102,81.92964732,177.35,177.25,1.6319]
[1753968602103,26.0,177.32,177.25,1.6319]
[1753968602308,6.00904306,177.26,177.2,5.64334085]
[1753968602500,26.0,177.19,177.17,16.784684]
[1753968602716,29.69857138,177.19,177.06,1.6319]
[1753968602930,26.0,177.19,177.14,5.64523327]
[1753968603135,26.0,177.21,177.12,6.00904306]
[1753968603341,26.0,177.19,177.11,5.6459636]
[1753968603630,26.0,177.19,177.08,14.11782978]
[1753968603631,32.00904306,177.19,177.1,6.00904306]
[1753968603814,45.4461716,177.19,177.08,5.64708406]
[1753968604015,45.4461716,177.19,177.06,1.6319]
[1753968604230,41.34482474,177.19,177.11,6.00904306]
[1753968604516,45.97987164,177.19,177.12,6.00904306]
[1753968604720,35.7011654,177.19,177.1,16.78468397]
[1753968604930,81.90482474,177.19,177.09,5.64660553]
[1753968605236,60.00093333,177.19,177.08,5.64714698]
[1753968605538,81.35494136,177.19,177.07,5.64747358]
[1753968605721,68.66196623,177.19,177.07,5.64747358]
[1753968605926,64.57025739,177.19,177.1,6.00904306]
[1753968606237,64.57025739,177.19,177.07,5.64744106]
[1753968606435,64.57025739,177.19,177.1,6.00904306]
[1753968606616,64.57025739,177.19,177.08,5.64708886]
[1753968606819,64.57025739,177.19,177.06,1.6319]
[1753968607019,64.57025739,177.19,177.1,6.00904306]
[1753968607633,64.57025739,177.19,177.11,6.00904306]
[1753968607934,64.57025739,177.19,177.12,6.00904306]
[1753968608238,60.00093333,177.19,177.06,15.75098901]
[1753968608427,60.00093333,177.19,177.11,5.64613651]
[1753968608623,48.34823093,177.19,177.13,6.00904306]
[1753968608934,48.34823093,177.19,177.09,14.11701988]
[1753968608935,50.68515165,177.19,177.18,137.253]
[1753968609234,26.0,177.19,177.18,137.253]
[1753968609437,4.07706277,177.19,177.18,137.253]
[1753968609644,40.58,177.2,177.18,137.253]
[1753968609834,14.10159123,177.29,177.19,6.00904306]
[1753968610032,6.00904306,177.25,177.2,6.00904306]
[1753968610223,58.04784309,177.28,177.18,137.253]
[1753968610224,6.00904306,177.21,177.18,137.253]
[1753968610420,40.58,177.22,177.18,137.253]
[1753968610739,40.58,177.22,177.18,143.26204306]
[1753968610921,40.58,177.22,177.19,6.00904306]
[1753968611123,72.58904306,177.23,177.19,6.00904306]
[1753968611425,40.58,177.24,177.2,6.00904306]
[1753968611628,40.58,177.24,177.21,6.00904306]
[1753968612017,40.58,177.25,177.21,6.00904306]
[1753968612218,4.07673689,177.24,177.21,6.00904306]
[1753968612418,31.6415224,177.26,177.18,137.253]
[1753968612419,40.58,177.26,177.18,137.253]
[1753968612630,4.07883922,177.25,177.19,5.64365934]
[1753968613022,4.07883922,177.25,177.22,6.00904306]
[1753968613448,4.07883922,177.25,177.23,6.00904306]
[1753968613847,37.64988061,177.28,177.19,5.64365934]
[1753968613848,5.64079422,177.28,177.2,22.42802482]
[1753968614135,6.00904306,177.23,177.18,137.253]
[1753968614326,6.00904306,177.2,177.18,137.253]
[1753968615450,46.58904306,177.2,177.18,137.253]
[1753968615746,10.08908062,177.19,177.18,137.253]
[1753968615944,15.73273996,177.19,177.18,137.253]
[1753968616147,19.4048719,177.19,177.18,137.253]
[1753968616541,13.39582884,177.19,177.18,137.253]
[1753968616732,15.73183658,177.19,177.18,137.253]
[1753968616931,19.54924683,177.19,177.18,137.253]
[1753968617147,23.2209451,177.19,177.18,137.253]
[1753968617350,4.07913418,177.19,177.18,137.253]
[1753968617769,66.58,177.2,177.18,137.253]
[1753968618141,40.58,177.2,177.18,137.253]
[1753968618350,40.58,177.22,177.19,9.82645331]
[1753968618660,50.40645331,177.22,177.18,137.253]
[1753968618977,7.74908987,177.21,177.18,137.253]
[1753968619274,54.48463258,177.2,177.18,137.253]
[1753968619574,50.40645331,177.2,177.18,137.253]
[1753968619756,147.3,177.19,177.18,137.253]
[1753968620167,152.94365934,177.19,177.18,137.253]
[1753968620462,160.69001342,177.19,177.18,137.253]
[1753968621068,155.04635408,177.19,177.18,137.253]
[1753968621268,155.04684959,177.19,177.18,137.253]
[1753968621469,160.68947996,177.19,177.18,137.253]
[1753968621672,23.21593327,177.19,177.18,137.253]
[1753968621858,36.047,177.18,177.1,48.3896]
[1753968622058,9.82645331,177.15,177.1,58.21605331]
[1753968622463,15.47115648,177.16,177.1,58.21605331]
[1753968622765,15.47115648,177.16,177.11,9.82645331]
[1753968622945,40.58,177.15,177.11,9.82645331]
[1753968623154,15.47115648,177.16,177.11,9.82645331]
[1753968623380,5.64470317,177.16,177.12,9.82645331]
[1753968623754,50.627,177.17,177.15,9.82645331]
[1753968623976,10.047,177.16,177.15,9.82645331]
[1753968624370,10.047,177.16,177.15,15.47138698]
[1753968624571,10.047,177.21,177.15,15.47138698]
[1753968624759,10.047,177.21,177.2,9.82645331]
[1753968625267,10.047,177.21,177.18,40.58]
[1753968625463,10.047,177.21,177.17,9.82645331]
[1753968625654,10.047,177.21,177.18,9.82645331]
[1753968626478,15.69002949,177.21,177.16,40.58]
[1753968626673,10.047,177.21,177.18,9.82645331]
[1753968626849,10.047,177.21,177.16,46.22459472]
[1753968626850,15.69004518,177.21,177.17,9.82645331]
[1753968627050,15.69004518,177.21,177.16,40.58]
[1753968627051,9.82645331,177.19,177.1,7.8096]
[1753968627282,10.047,177.2,177.16,0.06]
[1753968627283,19.87345331,177.18,177.16,0.06]
[1753968627570,10.047,177.17,177.16,0.06]
[1753968628280,25.51774974,177.17,177.16,0.06]
[1753968628467,70.17229101,177.17,177.16,0.06]
[1753968629358,60.3458377,177.17,177.16,0.06]
[1753968629867,70.17229101,177.17,177.16,0.06]
[1753968631883,73.84203709,177.17,177.16,0.06]
[1753968632081,73.84447599,177.17,177.16,0.06]
[1753968633264,64.01802268,177.17,177.16,0.06]
[1753968633575,73.84535009,177.17,177.16,0.06]
[1753968634454,73.84712433,177.17,177.16,0.06]
[1753968634655,64.02067102,177.17,177.16,0.06]
[1753968634855,73.84712433,177.17,177.16,0.06]
[1753968636059,9.987,177.15,177.09,1.6291]
[1753968636261,15.47230898,177.13,177.09,1.6291]